{"text_format":"1","workbook":"xlsx","n_sheets":6,"sheets":["formular vyuctovanie 2017","VZOR športovec","VZOR klub (športovec)","VZOR klub (mládež)","VZOR klub (MSR)","VZOR klub (medz.turnaj)"],"not_rendered":{"charts":0,"images":0,"macros":0,"external_links":0,"defined_names":6,"comments":6,"pivot_tables":0},"unopened":[],"bounds":{"document_bytes":16777216,"sheet_cells":100000,"rows_first":2000,"rows_last":500,"rows_between":2000,"halvings":0,"cell_chars":16384,"cell_head_chars":4096},"cells_cut":0,"cells_raw":0,"read":"whole","date_system":"1900"}

{"sheet":"formular vyuctovanie 2017","index":0,"n_rows":112,"n_cols":8,"rows_kept":112,"cut":false,"hidden":false,"merged":[[52,0,55,4],[52,5,54,7],[55,5,55,7],[50,5,50,7],[51,5,51,7],[50,2,51,4],[42,0,42,7],[4,4,4,7],[3,5,3,7],[43,0,43,7],[50,0,51,1],[48,0,49,1],[38,1,38,4],[46,2,47,4],[48,2,49,4],[46,0,47,1],[39,1,39,4],[41,0,41,7],[44,0,44,3],[45,0,45,7],[6,0,6,4],[7,0,7,1],[0,0,0,6],[7,5,7,7],[32,1,32,4],[34,1,34,4],[36,1,36,4],[6,5,6,7],[5,0,5,1],[2,0,2,7],[33,1,33,5],[5,4,5,5]]}
["Vyúčtovanie finančných prostriedkov"]
[]
["Finančné prostriedky poskytol :     Slovenský tenisový zväz, Príkopova 6, 83103 Bratislava, IČO: 30811384"]
[null,null,null,1]
["Príjemca:"]
[{"$f":"IF(D4<>3,\"IČO :\",\"Dátum narodenia :\")","v":"IČO :"},null,null,"Adresa :",null,null,"Číslo zmluvy:"]
["Samostatný bankový účet na príjem verejných prostriedkov (IBAN)  : "]
["Typ a názov zmluvy :",null,1]
["Ročná hodnota zmluvy:",null,null,"Kategória  (iba v prípade podujatia) :",null,"Obdobie vyúčtovania od / do:"]
[null,null,null,1]
["poradové číslo dokladu vo vyúčto vaní","Interné číslo účtovného dokladu","Číslo externého (originálneho)\núčtovného dokladu","Dátum skutočnej úhrady účtovného dokladu","Popis úhrady","Dodávateľ plnenia","Skutočne uhradená suma\n(v eur)","Vyplní STZ"]
[1]
[2]
[3]
[4]
[5]
[6]
[7]
[8]
[9]
[10]
[11]
[12]
[13]
[14]
[15]
[16]
[17]
[18]
[19]
[20]
[null,null,null,null,"V prípade potreby vložte ďalšie riadky"]
["A","Skutočne uhradená a vyúčtovaná suma za obdobie/podujatie spolu",null,null,null,null,{"$f":"SUM(G12:G32)","v":0}]
["B","Prenos navyše vyúčtovanej sumy z predchádzajúceho obdobia v rovnakom kalendárnom roku"]
["C","Nárok na finančný príspevok za uvedené obdobie od STZ"]
["D","Nárok na neuhradený a nevyúčtovaný finančný príspevok za predchádzajúce obdobia od STZ"]
["E","Uznaná suma príspevku : minimum ((A+B),(C+D)) ",null,null,null,null,{"$f":"MIN((G33+G34),(G35+G36))","v":0}]
["F","Prenos navyše vyúčtovanej sumy do nasledujúceho obdobia v rovnakom kalendárnom roku (A+B-E)",null,null,null,null,{"$f":"+G33+G34-G37","v":0}]
["G","Prijaté zálohové platby"]
["H","Suma k úhrade",null,null,null,null,{"$f":"+G37-G39","v":0}]
[null," (Ružovo zvýraznené položky v hárku vyplní tenisový klub / RTZ / športovec)."]
["Prílohu vyúčtovania tvoria kópie* všetkých účtovných dokladov z evidencie prijímateľa, uvedených vo vyúčtovaní v poradí podľa tabuľky vyššie, t.j. napr.:\n a) faktúra, spolu s príslušnou objednávkou (alebo zmluvou) a dokladom potvrdzujúcim jej úhradu (pokladničný doklad, bankový výpis),\n b) výdavkový pokladničný doklad + doklad o úhrade z registračnej pokladne,\n c) dohoda o vykonaní práce, prac.zmluva resp. iná zmluva spolu s dokladom potvrdzujúcim  úhradu odmeny netto (výdavkový pokl.doklad alebo bank.výpis) + doklad (bankový výpis) o úhrade dane zo záv.činnosti, resp. poistného na soc. a zdrav.poistenie (pokiaľ sú zahrnuté do vyúčtovania),\n d) ak je vo vyúčtovaní klubu uvedená suma za prenájom kurtov, ktoré sú vo vlastníctve/správe klubu, prílohu vyúčtovania tvorí faktúra klubu za prenájom kurtov, vystavená na STZ .                                                                        *Pozn.: Ak vyúčtovanie zasiela športovec, prikladá originály dokladov."]
["Podpísaný formulár spolu s prílohami zašlite po ukončení príslušného obdobia najneskôr do dátumu určeného v Zmluve poštou na adresu: Slovenský tenisový zväz, ekonomické oddelenie, Príkopova 6, 831 03 Bratislava."]
[{"$f":"+CONCATENATE(\"Formulár zašlite zároveň aj v elektronickej verzii (vo formáte .xlsm, .xls) na email: \",IF(C8=2,\"vyuctovanie.hraci@stz.sk\",\"vyuctovanie.kluby@stz.sk\"),\". (Bez príloh - dokladov z vyúčtovania).\")","v":"Formulár zašlite zároveň aj v elektronickej verzii (vo formáte .xlsm, .xls) na email: vyuctovanie.kluby@stz.sk. (Bez príloh - dokladov z vyúčtovania)."}]
["Do predmetu emailu uveďte číslo zmluvy:",null,null,null,{"$f":"IF(H6<>\"\",H6,\"\")","v":""}]
["Čestne vyhlasujem, že všetky uvedené údaje sú pravdivé a dolu podpísaná osoba/osoby je oprávnená/sú oprávnené v súlade so stanovami, resp. zriaďovacou listinou na podpis vyúčtovania. Súhlasím so zhromažďovaním, spracovávaním a zverejňovaním poskytnutých údajov v zmysle Zákona o ochrane osobných údajov."]
["Vypracoval:"]
[]
["Telefón a email :"]
[]
["Dňa:"]
[null,null,null,null,null,"pečiatka a podpis štatutárneho zástupcu TK / RTZ / hráča"]
[]
[]
[]
[null,null,null,null,null,"za STZ schválil"]
[null,null,null,null,"táto časť pod čiarou sa netlačí"]
[]
[null,null,null,null,"Zoznam typov zmlúv"]
[null,null,null,1,"Zmluva o finančnom príspevku na šport mládeže"]
[null,null,null,2,"Zmluva o finančnom príspevku pre športovca"]
[null,null,null,3,"Zmluva o vzájomnej spolupráci - MSR družstiev"]
[null,null,null,4,"Zmluva o vzájomnej spolupráci - MSR jednotlivcov"]
[null,null,null,5,"Zmluva o vzájomnej spolupráci - medzinárodné turnaje"]
[null,null,null,6,"Zmluva o vzájomnej spolupráci - regionálne MSR halové"]
[null,null,null,7,"Zmluva o vzájomnej spolupráci - regionálne MSR letné"]
[null,null,null,8,"Zmluva o vzájomnej spolupráci - príspevok na činnosť RTZ"]
[null,null,null,9,"Zmluva o vzájomnej spolupráci - detský DC a FC"]
[null,null,null,10,"Zmluva o vzájomnej spolupráci ..."]
[]
[]
[]
[]
[null,null,null,null,"Zoznam kategórií"]
[null,null,null,1]
[null,null,null,2,"deti do 10rokov"]
[null,null,null,3,"mladší žiaci"]
[null,null,null,4,"mladšie žiačky"]
[null,null,null,5,"mladší žiaci a žiačky"]
[null,null,null,6,"starší žiaci"]
[null,null,null,7,"staršie žiačky"]
[null,null,null,8,"starší žiaci a žiačky"]
[null,null,null,9,"dorastenci"]
[null,null,null,10,"dorastenky"]
[null,null,null,11,"dorast"]
[null,null,null,12,"mladší dorastenci"]
[null,null,null,13,"mladšie dorastenky"]
[null,null,null,14,"mladší dorast"]
[null,null,null,15,"muži"]
[null,null,null,16,"ženy"]
[null,null,null,17,"dospelí"]
[null,null,null,18,"seniori 35+"]
[null,null,null,19,"seniori 45+"]
[null,null,null,20,"seniori 55+"]
[null,null,null,21,"seniori 65+"]
[null,null,null,22,"seniori 75+"]
[null,null,null,23,"seniori 85+"]
[null,null,null,24,"seniori 35+..85+"]
[null,null,null,25,"seniori iná kategória"]
[null,null,null,26,"športovec"]
[null,null,null,27,"turnaj ITF/TE"]
[null,null,null,28,"halové RMS"]
[null,null,null,29,"letné RMS"]
[null,null,null,30]
[]
[]
[]
[null,null,null,null,"Zoznam prijímateľov"]
[null,null,null,1,"Tenisový klub"]
[null,null,null,2,"Regionálny tenisový zväz"]
[null,null,null,3,"Športovec"]
[null,null,null,4]

{"sheet":"VZOR športovec","index":1,"n_rows":112,"n_cols":8,"rows_kept":112,"cut":false,"hidden":false,"merged":[[0,0,0,6],[33,1,33,5],[2,0,2,7],[3,5,3,7],[4,4,4,7],[5,0,5,1],[5,4,5,5],[6,0,6,4],[6,5,6,7],[7,0,7,1],[7,5,7,7],[32,1,32,4],[48,0,49,1],[48,2,49,4],[34,1,34,4],[36,1,36,4],[38,1,38,4],[39,1,39,4],[41,0,41,7],[42,0,42,7],[43,0,43,7],[44,0,44,3],[45,0,45,7],[46,0,47,1],[46,2,47,4],[50,0,51,1],[50,2,51,4],[50,5,50,7],[51,5,51,7],[52,0,55,4],[52,5,54,7],[55,5,55,7]]}
["Vyúčtovanie finančných prostriedkov",null,null,null,null,null,null,"VZOR"]
[]
["Finančné prostriedky poskytol :     Slovenský tenisový zväz, Príkopova 6, 83103 Bratislava, IČO: 30811384"]
[null,null,null,3]
["Príjemca:",null,"Príjemca:",null,"Jana Malá"]
[{"$f":"IF(D4<>3,\"IČO :\",\"Dátum narodenia :\")","v":"Dátum narodenia :"},null,"15.12.1998","Adresa :","Mesačná 23, 811 01 Bratislava",null,"Číslo zmluvy:",21792206]
["Samostatný bankový účet na príjem verejných prostriedkov (IBAN)  : ",null,null,null,null,"SK7511000000002622625678"]
["Typ a názov zmluvy :",null,2]
["Ročná hodnota zmluvy:",null,4000,"Kategória  (iba v prípade podujatia) :",null,"Obdobie vyúčtovania od / do:","2016-11-01","2017-01-31"]
[null,null,null,1]
["poradové číslo dokladu vo vyúčto vaní","Interné číslo účtovného dokladu","Číslo externého (originálneho)\núčtovného dokladu","Dátum skutočnej úhrady účtovného dokladu","Popis úhrady","Dodávateľ plnenia","Skutočne uhradená suma\n(v eur)","Vyplní STZ"]
[1,null,"2016001287","2017-01-05","tenisové lopty Dunlop Fort 72ks","SEEKER, s.r.o.",108]
[2,null,"160011","2017-01-07","odmena za služby trénera za 11/2016","Ján Pekný (SZČO)",350]
[3,null,null,"2017-01-15","vyúčtovanie cesty, turnaj Piešťany, 10.-11.1.2017, AUV, počet osôb:2","Jana Malá",78.34]
[4,null,null,"2017-01-05","iontové nápoje 15ks","Fitness Relax, s.r.o.",18]
[5,null,null,"2017-01-10","vklady na turnaje","TK Slovan Bratislava",30]
[6,null,"347801","2017-01-15","ubytovanie na turnaji Jana Malá, 10.-12.1.2017,2noci","Hotel Klub, s.r.o.",110]
[7,null,"2163457","2017-01-10","nájom kurtov za 11,12/2016","TK ABC Bratislava",210.5]
[8,null,"20160378","2017-01-15","masáže za 11,12/2016","Fitness Relax, s.r.o.",80]
[9,null,"16087412","2017-01-20","tepláky 1ks + tenisky 2ks","Adidas Slovensko, s.r.o.",178]
[10]
[11]
[12]
[13]
[14]
[15]
[16]
[17]
[18]
[19]
[20]
[null,null,null,null,"V prípade potreby vložte ďalšie riadky"]
["A","Skutočne uhradená a vyúčtovaná suma za obdobie/podujatie spolu",null,null,null,null,{"$f":"SUM(G12:G32)","v":1162.8400000000001}]
["B","Prenos navyše vyúčtovanej sumy z predchádzajúceho obdobia v rovnakom kalendárnom roku",null,null,null,null,0]
["C","Nárok na finančný príspevok za uvedené obdobie od STZ",null,null,null,null,1000]
["D","Nárok na neuhradený a nevyúčtovaný finančný príspevok za predchádzajúce obdobia od STZ",null,null,null,null,0]
["E","Uznaná suma príspevku : minimum ((A+B),(C+D)) ",null,null,null,null,{"$f":"MIN((G33+G34),(G35+G36))","v":1000}]
["F","Prenos navyše vyúčtovanej sumy do nasledujúceho obdobia v rovnakom kalendárnom roku (A+B-E)",null,null,null,null,{"$f":"+G33+G34-G37","v":162.84000000000015}]
["G","Prijaté zálohové platby",null,null,null,null,0]
["H","Suma k úhrade",null,null,null,null,{"$f":"+G37-G39","v":1000}]
[null," (Ružovo zvýraznené položky v hárku vyplní tenisový klub / RTZ / športovec)."]
["Prílohu vyúčtovania tvoria kópie* všetkých účtovných dokladov z evidencie prijímateľa, uvedených vo vyúčtovaní v poradí podľa tabuľky vyššie, t.j. napr.:\n a) faktúra, spolu s príslušnou objednávkou (alebo zmluvou) a dokladom potvrdzujúcim jej úhradu (pokladničný doklad, bankový výpis),\n b) výdavkový pokladničný doklad + doklad o úhrade z registračnej pokladne,\n c) dohoda o vykonaní práce, prac.zmluva resp. iná zmluva spolu s dokladom potvrdzujúcim  úhradu odmeny netto (výdavkový pokl.doklad alebo bank.výpis) + doklad (bankový výpis) o úhrade dane zo záv.činnosti, resp. poistného na soc. a zdrav.poistenie (pokiaľ sú zahrnuté do vyúčtovania),\n d) ak je vo vyúčtovaní klubu uvedená suma za prenájom kurtov, ktoré sú vo vlastníctve/správe klubu, prílohu vyúčtovania tvorí faktúra klubu za prenájom kurtov, vystavená na STZ .                                                                        *Pozn.: Ak vyúčtovanie zasiela športovec, prikladá originály dokladov."]
["Podpísaný formulár spolu s prílohami zašlite po ukončení príslušného obdobia najneskôr do dátumu určeného v Zmluve poštou na adresu: Slovenský tenisový zväz, ekonomické oddelenie, Príkopova 6, 831 03 Bratislava."]
[{"$f":"+CONCATENATE(\"Formulár zašlite zároveň aj v elektronickej verzii (vo formáte .xlsm, .xls) na email: \",IF(C8=2,\"vyuctovanie.hraci@stz.sk\",\"vyuctovanie.kluby@stz.sk\"),\". (Bez príloh - dokladov z vyúčtovania).\")","v":"Formulár zašlite zároveň aj v elektronickej verzii (vo formáte .xlsm, .xls) na email: vyuctovanie.hraci@stz.sk. (Bez príloh - dokladov z vyúčtovania)."}]
["Do predmetu emailu uveďte číslo zmluvy:",null,null,null,{"$f":"IF(H6<>\"\",H6,\"\")","v":21792206}]
["Čestne vyhlasujem, že všetky uvedené údaje sú pravdivé a dolu podpísaná osoba/osoby je oprávnená/sú oprávnené v súlade so stanovami, resp. zriaďovacou listinou na podpis vyúčtovania. Súhlasím so zhromažďovaním, spracovávaním a zverejňovaním poskytnutých údajov v zmysle Zákona o ochrane osobných údajov."]
["Vypracoval:",null,"Ing. Jozef Príklad"]
[]
["Telefón a email :",null,"0909/999 123,  jozef1975@gmail.com"]
[]
["Dňa:",null,"2017-02-25"]
[null,null,null,null,null,"pečiatka a podpis štatutárneho zástupcu TK / RTZ / hráča"]
[]
[]
[]
[null,null,null,null,null,"za STZ schválil"]
[null,null,null,null,"táto časť pod čiarou sa netlačí"]
[]
[null,null,null,null,"Zoznam typov zmlúv"]
[null,null,null,1,"Zmluva o finančnom príspevku na šport mládeže"]
[null,null,null,2,"Zmluva o finančnom príspevku pre športovca"]
[null,null,null,3,"Zmluva o vzájomnej spolupráci - MSR družstiev"]
[null,null,null,4,"Zmluva o vzájomnej spolupráci - MSR jednotlivcov"]
[null,null,null,5,"Zmluva o vzájomnej spolupráci - medzinárodné turnaje"]
[null,null,null,6,"Zmluva o vzájomnej spolupráci - regionálne MSR halové"]
[null,null,null,7,"Zmluva o vzájomnej spolupráci - regionálne MSR letné"]
[null,null,null,8,"Zmluva o vzájomnej spolupráci - príspevok na činnosť RTZ"]
[null,null,null,9,"Zmluva o vzájomnej spolupráci - detský DC a FC"]
[null,null,null,10,"Zmluva o vzájomnej spolupráci ..."]
[]
[]
[]
[]
[null,null,null,null,"Zoznam kategórií"]
[null,null,null,1]
[null,null,null,2,"deti do 10rokov"]
[null,null,null,3,"mladší žiaci"]
[null,null,null,4,"mladšie žiačky"]
[null,null,null,5,"mladší žiaci a žiačky"]
[null,null,null,6,"starší žiaci"]
[null,null,null,7,"staršie žiačky"]
[null,null,null,8,"starší žiaci a žiačky"]
[null,null,null,9,"dorastenci"]
[null,null,null,10,"dorastenky"]
[null,null,null,11,"dorast"]
[null,null,null,12,"mladší dorastenci"]
[null,null,null,13,"mladšie dorastenky"]
[null,null,null,14,"mladší dorast"]
[null,null,null,15,"muži"]
[null,null,null,16,"ženy"]
[null,null,null,17,"dospelí"]
[null,null,null,18,"seniori 35+"]
[null,null,null,19,"seniori 45+"]
[null,null,null,20,"seniori 55+"]
[null,null,null,21,"seniori 65+"]
[null,null,null,22,"seniori 75+"]
[null,null,null,23,"seniori 85+"]
[null,null,null,24,"seniori 35+..85+"]
[null,null,null,25,"seniori iná kategória"]
[null,null,null,26,"športovec"]
[null,null,null,27,"turnaj ITF/TE"]
[null,null,null,28,"halové RMS"]
[null,null,null,29,"letné RMS"]
[null,null,null,30]
[]
[]
[]
[null,null,null,null,"Zoznam prijímateľov"]
[null,null,null,1,"Tenisový klub"]
[null,null,null,2,"Regionálny tenisový zväz"]
[null,null,null,3,"Športovec"]
[null,null,null,4]

{"sheet":"VZOR klub (športovec)","index":2,"n_rows":112,"n_cols":8,"rows_kept":112,"cut":false,"hidden":false,"merged":[[50,0,51,1],[50,2,51,4],[50,5,50,7],[51,5,51,7],[52,0,55,4],[52,5,54,7],[55,5,55,7],[48,0,49,1],[48,2,49,4],[34,1,34,4],[36,1,36,4],[38,1,38,4],[39,1,39,4],[41,0,41,7],[42,0,42,7],[43,0,43,7],[44,0,44,3],[45,0,45,7],[46,0,47,1],[46,2,47,4],[33,1,33,5],[0,0,0,6],[2,0,2,7],[3,5,3,7],[4,4,4,7],[5,0,5,1],[5,4,5,5],[6,0,6,4],[6,5,6,7],[7,0,7,1],[7,5,7,7],[32,1,32,4]]}
["Vyúčtovanie finančných prostriedkov",null,null,null,null,null,null,"VZOR"]
[]
["Finančné prostriedky poskytol :     Slovenský tenisový zväz, Príkopova 6, 83103 Bratislava, IČO: 30811384"]
[null,null,null,1]
["Príjemca:",null,"Príjemca:",null,"Tenisový klub ABC Bratislava"]
[{"$f":"IF(D4<>3,\"IČO :\",\"Dátum narodenia :\")","v":"IČO :"},null,"31234567","Adresa :","Sputniková 36, 82101 Bratislava",null,"Číslo zmluvy:",21792206]
["Samostatný bankový účet na príjem verejných prostriedkov (IBAN)  : ",null,null,null,null,"SK7511000000002622621234"]
["Typ a názov zmluvy :",null,2,null,null,"Jana Malá, nar.15.12.1998"]
["Ročná hodnota zmluvy:",null,4000,"Kategória  (iba v prípade podujatia) :",null,"Obdobie vyúčtovania od / do:","2016-11-01","2017-01-31"]
[null,null,null,26]
["poradové číslo dokladu vo vyúčto vaní","Interné číslo účtovného dokladu","Číslo externého (originálneho)\núčtovného dokladu","Dátum skutočnej úhrady účtovného dokladu","Popis úhrady","Dodávateľ plnenia","Skutočne uhradená suma\n(v eur)","Vyplní STZ"]
[1,"FD 129/2016","2016001287","2017-01-05","tenisové lopty Dunlop Fort 72ks","SEEKER, s.r.o.",108]
[2,"FD 131/2016","160011","2017-01-07","odmena za služby trénera za 11/2016","Ján Pekný (SZČO)",350]
[3,"V 013/2017",null,"2017-01-15","vyúčtovanie cesty, turnaj Piešťany, 10.-11.1.2017, AUV, počet osôb:2","Jana Malá",78.34]
[4,"V 015/2017",null,"2017-01-05","iontové nápoje 15ks","Fitness Relax, s.r.o.",18]
[5,"V 021/2017",null,"2017-01-10","vklady na turnaje","TK Slovan Bratislava",30]
[6,"V 022/2017","347801","2017-01-15","ubytovanie na turnaji Jana Malá, 10.-12.1.2017,2noci","Hotel Klub, s.r.o.",110]
[7,"FV 375/2016",null,"2017-01-10","nájom kurtov za 11,12/2016","TK ABC Bratislava",210.5]
[8,"V 025/2017","20160378","2017-01-15","masáže za 11,12/2016","Fitness Relax, s.r.o.",80]
[9,"FD 021/2017","16087412","2017-01-20","tepláky 1ks + tenisky 2ks","Adidas Slovensko, s.r.o.",178]
[10]
[11]
[12]
[13]
[14]
[15]
[16]
[17]
[18]
[19]
[20]
[null,null,null,null,"V prípade potreby vložte ďalšie riadky"]
["A","Skutočne uhradená a vyúčtovaná suma za obdobie/podujatie spolu",null,null,null,null,{"$f":"SUM(G12:G32)","v":1162.8400000000001}]
["B","Prenos navyše vyúčtovanej sumy z predchádzajúceho obdobia v rovnakom kalendárnom roku",null,null,null,null,0]
["C","Nárok na finančný príspevok za uvedené obdobie od STZ",null,null,null,null,1000]
["D","Nárok na neuhradený a nevyúčtovaný finančný príspevok za predchádzajúce obdobia od STZ",null,null,null,null,0]
["E","Uznaná suma príspevku : minimum ((A+B),(C+D)) ",null,null,null,null,{"$f":"MIN((G33+G34),(G35+G36))","v":1000}]
["F","Prenos navyše vyúčtovanej sumy do nasledujúceho obdobia v rovnakom kalendárnom roku (A+B-E)",null,null,null,null,{"$f":"+G33+G34-G37","v":162.84000000000015}]
["G","Prijaté zálohové platby",null,null,null,null,0]
["H","Suma k úhrade",null,null,null,null,{"$f":"+G37-G39","v":1000}]
[null," (Ružovo zvýraznené položky v hárku vyplní tenisový klub / RTZ / športovec)."]
["Prílohu vyúčtovania tvoria kópie* všetkých účtovných dokladov z evidencie prijímateľa, uvedených vo vyúčtovaní v poradí podľa tabuľky vyššie, t.j. napr.:\n a) faktúra, spolu s príslušnou objednávkou (alebo zmluvou) a dokladom potvrdzujúcim jej úhradu (pokladničný doklad, bankový výpis),\n b) výdavkový pokladničný doklad + doklad o úhrade z registračnej pokladne,\n c) dohoda o vykonaní práce, prac.zmluva resp. iná zmluva spolu s dokladom potvrdzujúcim  úhradu odmeny netto (výdavkový pokl.doklad alebo bank.výpis) + doklad (bankový výpis) o úhrade dane zo záv.činnosti, resp. poistného na soc. a zdrav.poistenie (pokiaľ sú zahrnuté do vyúčtovania),\n d) ak je vo vyúčtovaní klubu uvedená suma za prenájom kurtov, ktoré sú vo vlastníctve/správe klubu, prílohu vyúčtovania tvorí faktúra klubu za prenájom kurtov, vystavená na STZ .                                                                        *Pozn.: Ak vyúčtovanie zasiela športovec, prikladá originály dokladov."]
["Podpísaný formulár spolu s prílohami zašlite po ukončení príslušného obdobia najneskôr do dátumu určeného v Zmluve poštou na adresu: Slovenský tenisový zväz, ekonomické oddelenie, Príkopova 6, 831 03 Bratislava."]
[{"$f":"+CONCATENATE(\"Formulár zašlite zároveň aj v elektronickej verzii (vo formáte .xlsm, .xls) na email: \",IF(C8=2,\"vyuctovanie.hraci@stz.sk\",\"vyuctovanie.kluby@stz.sk\"),\". (Bez príloh - dokladov z vyúčtovania).\")","v":"Formulár zašlite zároveň aj v elektronickej verzii (vo formáte .xlsm, .xls) na email: vyuctovanie.hraci@stz.sk. (Bez príloh - dokladov z vyúčtovania)."}]
["Do predmetu emailu uveďte číslo zmluvy:",null,null,null,{"$f":"IF(H6<>\"\",H6,\"\")","v":21792206}]
["Čestne vyhlasujem, že všetky uvedené údaje sú pravdivé a dolu podpísaná osoba/osoby je oprávnená/sú oprávnené v súlade so stanovami, resp. zriaďovacou listinou na podpis vyúčtovania. Súhlasím so zhromažďovaním, spracovávaním a zverejňovaním poskytnutých údajov v zmysle Zákona o ochrane osobných údajov."]
["Vypracoval:",null,"Ing. Jozef Príklad"]
[]
["Telefón a email :",null,"0909/999 123,  jozef1975@gmail.com"]
[]
["Dňa:",null,"2017-02-25"]
[null,null,null,null,null,"pečiatka a podpis štatutárneho zástupcu TK / RTZ / hráča"]
[]
[]
[]
[null,null,null,null,null,"za STZ schválil"]
[null,null,null,null,"táto časť pod čiarou sa netlačí"]
[]
[null,null,null,null,"Zoznam typov zmlúv"]
[null,null,null,1,"Zmluva o finančnom príspevku na šport mládeže"]
[null,null,null,2,"Zmluva o finančnom príspevku pre športovca"]
[null,null,null,3,"Zmluva o vzájomnej spolupráci - MSR družstiev"]
[null,null,null,4,"Zmluva o vzájomnej spolupráci - MSR jednotlivcov"]
[null,null,null,5,"Zmluva o vzájomnej spolupráci - medzinárodné turnaje"]
[null,null,null,6,"Zmluva o vzájomnej spolupráci - regionálne MSR halové"]
[null,null,null,7,"Zmluva o vzájomnej spolupráci - regionálne MSR letné"]
[null,null,null,8,"Zmluva o vzájomnej spolupráci - príspevok na činnosť RTZ"]
[null,null,null,9,"Zmluva o vzájomnej spolupráci - detský DC a FC"]
[null,null,null,10,"Zmluva o vzájomnej spolupráci ..."]
[]
[]
[]
[]
[null,null,null,null,"Zoznam kategórií"]
[null,null,null,1]
[null,null,null,2,"deti do 10rokov"]
[null,null,null,3,"mladší žiaci"]
[null,null,null,4,"mladšie žiačky"]
[null,null,null,5,"mladší žiaci a žiačky"]
[null,null,null,6,"starší žiaci"]
[null,null,null,7,"staršie žiačky"]
[null,null,null,8,"starší žiaci a žiačky"]
[null,null,null,9,"dorastenci"]
[null,null,null,10,"dorastenky"]
[null,null,null,11,"dorast"]
[null,null,null,12,"mladší dorastenci"]
[null,null,null,13,"mladšie dorastenky"]
[null,null,null,14,"mladší dorast"]
[null,null,null,15,"muži"]
[null,null,null,16,"ženy"]
[null,null,null,17,"dospelí"]
[null,null,null,18,"seniori 35+"]
[null,null,null,19,"seniori 45+"]
[null,null,null,20,"seniori 55+"]
[null,null,null,21,"seniori 65+"]
[null,null,null,22,"seniori 75+"]
[null,null,null,23,"seniori 85+"]
[null,null,null,24,"seniori 35+..85+"]
[null,null,null,25,"seniori iná kategória"]
[null,null,null,26,"športovec"]
[null,null,null,27,"turnaj ITF/TE"]
[null,null,null,28,"halové RMS"]
[null,null,null,29,"letné RMS"]
[null,null,null,30]
[]
[]
[]
[null,null,null,null,"Zoznam prijímateľov"]
[null,null,null,1,"Tenisový klub"]
[null,null,null,2,"Regionálny tenisový zväz"]
[null,null,null,3,"Športovec"]
[null,null,null,4]

{"sheet":"VZOR klub (mládež)","index":3,"n_rows":112,"n_cols":8,"rows_kept":112,"cut":false,"hidden":false,"merged":[[0,0,0,6],[33,1,33,5],[2,0,2,7],[3,5,3,7],[4,4,4,7],[5,0,5,1],[5,4,5,5],[6,0,6,4],[6,5,6,7],[7,0,7,1],[7,5,7,7],[32,1,32,4],[48,0,49,1],[48,2,49,4],[34,1,34,4],[36,1,36,4],[38,1,38,4],[39,1,39,4],[41,0,41,7],[42,0,42,7],[43,0,43,7],[44,0,44,3],[45,0,45,7],[46,0,47,1],[46,2,47,4],[50,0,51,1],[50,2,51,4],[50,5,50,7],[51,5,51,7],[52,0,55,4],[52,5,54,7],[55,5,55,7]]}
["Vyúčtovanie finančných prostriedkov",null,null,null,null,null,null,"VZOR"]
[]
["Finančné prostriedky poskytol :     Slovenský tenisový zväz, Príkopova 6, 83103 Bratislava, IČO: 30811384"]
[null,null,null,1]
["Príjemca:",null,"Príjemca:",null,"Tenisový klub ABC Bratislava"]
[{"$f":"IF(D4<>3,\"IČO :\",\"Dátum narodenia :\")","v":"IČO :"},null,"31234567","Adresa :","Sputniková 36, 82101 Bratislava",null,"Číslo zmluvy:",21792021]
["Samostatný bankový účet na príjem verejných prostriedkov (IBAN)  : ",null,null,null,null,"SK7511000000002622621234"]
["Typ a názov zmluvy :",null,1]
["Ročná hodnota zmluvy:",null,21000,"Kategória  (iba v prípade podujatia) :",null,"Obdobie vyúčtovania od / do:","2016-11-01","2016-12-31"]
[null,null,null,1]
["poradové číslo dokladu vo vyúčto vaní","Interné číslo účtovného dokladu","Číslo externého (originálneho)\núčtovného dokladu","Dátum skutočnej úhrady účtovného dokladu","Popis úhrady","Dodávateľ plnenia","Skutočne uhradená suma\n(v eur)","Vyplní STZ"]
[1,"FD 103/2016","160011","2016-12-15","odmena za služby trénera za 11/2016","Ján Pekný (SZČO)",1600]
[2,"FD104/2016","16005789","2016-12-15","svietidlá 12ks v ten.hale - výmena","Elektroshop, s.r.o.",208.08]
[3,"FD 094/2016","2016001287","2016-11-28","tenisové lopty Dunlop Fort 72ks","SEEKER, s.r.o.",108]
[4,"V 217/2016",null,"2016-12-15","vyúčtovanie cesty, turnaj Piešťany, 10.-11.12.2016, AUV, počet osôb:2","Ján Pekný",78.34]
[5,"FD 099/2016","2163457","2016-12-31","nájom telocvične za 11,12/2016","Základná škola Družstevná, Bratislava",210.5]
[6,"V 218/2016",null,"2016-12-15","svietidlá 12ks v ten.hale - výmena žiariviek","Elektroshop, s.r.o.",208.08]
[7,"FD 108/2016","16087412","2016-12-14","tepláky pre družstvo mužov - 6ks","Adidas Slovensko, s.r.o.",474]
[8,"V 220/2016",null,"2016-12-16","regenerácia pre hráča Jana Malá, 11/2016","Fitness Relax, s.r.o.",85]
[9,"V 221/2016",null,"2016-12-16","iontové nápoje 150ks","Fitness Relax, s.r.o.",180]
[10,"FD 110/2016","201601287","2016-12-17","antuka (2tony)","Tehelňa XY, s.r.o.",285]
[11,"V 226/2016",null,"2016-12-18","vklady na turnaje pre hráčov Jana Malá, Anna Pekná","TK Slovan Bratislava",30]
[12,"FD 112/2016","347801","2016-12-20","ubytovanie na turnaji Jana Malá, Anna Pekná, 10.-12.12.2016,2noci","Hotel Klub, s.r.o.",110]
[13]
[14]
[15]
[16]
[17]
[18]
[19]
[20]
[null,null,null,null,"V prípade potreby vložte ďalšie riadky"]
["A","Skutočne uhradená a vyúčtovaná suma za obdobie/podujatie spolu",null,null,null,null,{"$f":"SUM(G12:G32)","v":3577}]
["B","Prenos navyše vyúčtovanej sumy z predchádzajúceho obdobia v rovnakom kalendárnom roku",null,null,null,null,0]
["C","Nárok na finančný príspevok za uvedené obdobie od STZ",null,null,null,null,3500]
["D","Nárok na neuhradený a nevyúčtovaný finančný príspevok za predchádzajúce obdobia od STZ",null,null,null,null,0]
["E","Uznaná suma príspevku : minimum ((A+B),(C+D)) ",null,null,null,null,{"$f":"MIN((G33+G34),(G35+G36))","v":3500}]
["F","Prenos navyše vyúčtovanej sumy do nasledujúceho obdobia v rovnakom kalendárnom roku (A+B-E)",null,null,null,null,{"$f":"+G33+G34-G37","v":77}]
["G","Prijaté zálohové platby",null,null,null,null,3500]
["H","Suma k úhrade",null,null,null,null,{"$f":"+G37-G39","v":0}]
[null," (Ružovo zvýraznené položky v hárku vyplní tenisový klub / RTZ / športovec)."]
["Prílohu vyúčtovania tvoria kópie* všetkých účtovných dokladov z evidencie prijímateľa, uvedených vo vyúčtovaní v poradí podľa tabuľky vyššie, t.j. napr.:\n a) faktúra, spolu s príslušnou objednávkou (alebo zmluvou) a dokladom potvrdzujúcim jej úhradu (pokladničný doklad, bankový výpis),\n b) výdavkový pokladničný doklad + doklad o úhrade z registračnej pokladne,\n c) dohoda o vykonaní práce, prac.zmluva resp. iná zmluva spolu s dokladom potvrdzujúcim  úhradu odmeny netto (výdavkový pokl.doklad alebo bank.výpis) + doklad (bankový výpis) o úhrade dane zo záv.činnosti, resp. poistného na soc. a zdrav.poistenie (pokiaľ sú zahrnuté do vyúčtovania),\n d) ak je vo vyúčtovaní klubu uvedená suma za prenájom kurtov, ktoré sú vo vlastníctve/správe klubu, prílohu vyúčtovania tvorí faktúra klubu za prenájom kurtov, vystavená na STZ .                                                                        *Pozn.: Ak vyúčtovanie zasiela športovec, prikladá originály dokladov."]
["Podpísaný formulár spolu s prílohami zašlite po ukončení príslušného obdobia najneskôr do dátumu určeného v Zmluve poštou na adresu: Slovenský tenisový zväz, ekonomické oddelenie, Príkopova 6, 831 03 Bratislava."]
[{"$f":"+CONCATENATE(\"Formulár zašlite zároveň aj v elektronickej verzii (vo formáte .xlsm, .xls) na email: \",IF(C8=2,\"vyuctovanie.hraci@stz.sk\",\"vyuctovanie.kluby@stz.sk\"),\". (Bez príloh - dokladov z vyúčtovania).\")","v":"Formulár zašlite zároveň aj v elektronickej verzii (vo formáte .xlsm, .xls) na email: vyuctovanie.kluby@stz.sk. (Bez príloh - dokladov z vyúčtovania)."}]
["Do predmetu emailu uveďte číslo zmluvy:",null,null,null,{"$f":"IF(H6<>\"\",H6,\"\")","v":21792021}]
["Čestne vyhlasujem, že všetky uvedené údaje sú pravdivé a dolu podpísaná osoba/osoby je oprávnená/sú oprávnené v súlade so stanovami, resp. zriaďovacou listinou na podpis vyúčtovania. Súhlasím so zhromažďovaním, spracovávaním a zverejňovaním poskytnutých údajov v zmysle Zákona o ochrane osobných údajov."]
["Vypracoval:",null,"Ing. Jozef Príklad"]
[]
["Telefón a email :",null,"0909/999 123,  jozef1975@gmail.com"]
[]
["Dňa:",null,"2017-01-20"]
[null,null,null,null,null,"pečiatka a podpis štatutárneho zástupcu TK / RTZ / hráča"]
[]
[]
[]
[null,null,null,null,null,"za STZ schválil"]
[null,null,null,null,"táto časť pod čiarou sa netlačí"]
[]
[null,null,null,null,"Zoznam typov zmlúv"]
[null,null,null,1,"Zmluva o finančnom príspevku na šport mládeže"]
[null,null,null,2,"Zmluva o finančnom príspevku pre športovca"]
[null,null,null,3,"Zmluva o vzájomnej spolupráci - MSR družstiev"]
[null,null,null,4,"Zmluva o vzájomnej spolupráci - MSR jednotlivcov"]
[null,null,null,5,"Zmluva o vzájomnej spolupráci - medzinárodné turnaje"]
[null,null,null,6,"Zmluva o vzájomnej spolupráci - regionálne MSR halové"]
[null,null,null,7,"Zmluva o vzájomnej spolupráci - regionálne MSR letné"]
[null,null,null,8,"Zmluva o vzájomnej spolupráci - príspevok na činnosť RTZ"]
[null,null,null,9,"Zmluva o vzájomnej spolupráci - detský DC a FC"]
[null,null,null,10,"Zmluva o vzájomnej spolupráci ..."]
[]
[]
[]
[]
[null,null,null,null,"Zoznam kategórií"]
[null,null,null,1]
[null,null,null,2,"deti do 10rokov"]
[null,null,null,3,"mladší žiaci"]
[null,null,null,4,"mladšie žiačky"]
[null,null,null,5,"mladší žiaci a žiačky"]
[null,null,null,6,"starší žiaci"]
[null,null,null,7,"staršie žiačky"]
[null,null,null,8,"starší žiaci a žiačky"]
[null,null,null,9,"dorastenci"]
[null,null,null,10,"dorastenky"]
[null,null,null,11,"dorast"]
[null,null,null,12,"mladší dorastenci"]
[null,null,null,13,"mladšie dorastenky"]
[null,null,null,14,"mladší dorast"]
[null,null,null,15,"muži"]
[null,null,null,16,"ženy"]
[null,null,null,17,"dospelí"]
[null,null,null,18,"seniori 35+"]
[null,null,null,19,"seniori 45+"]
[null,null,null,20,"seniori 55+"]
[null,null,null,21,"seniori 65+"]
[null,null,null,22,"seniori 75+"]
[null,null,null,23,"seniori 85+"]
[null,null,null,24,"seniori 35+..85+"]
[null,null,null,25,"seniori iná kategória"]
[null,null,null,26,"športovec"]
[null,null,null,27,"turnaj ITF/TE"]
[null,null,null,28,"halové RMS"]
[null,null,null,29,"letné RMS"]
[null,null,null,30]
[]
[]
[]
[null,null,null,null,"Zoznam prijímateľov"]
[null,null,null,1,"Tenisový klub"]
[null,null,null,2,"Regionálny tenisový zväz"]
[null,null,null,3,"Športovec"]
[null,null,null,4]

{"sheet":"VZOR klub (MSR)","index":4,"n_rows":112,"n_cols":8,"rows_kept":112,"cut":false,"hidden":false,"merged":[[50,0,51,1],[50,2,51,4],[50,5,50,7],[51,5,51,7],[52,0,55,4],[52,5,54,7],[55,5,55,7],[48,0,49,1],[48,2,49,4],[34,1,34,4],[36,1,36,4],[38,1,38,4],[39,1,39,4],[41,0,41,7],[42,0,42,7],[43,0,43,7],[44,0,44,3],[45,0,45,7],[46,0,47,1],[46,2,47,4],[33,1,33,5],[0,0,0,6],[2,0,2,7],[3,5,3,7],[4,4,4,7],[5,0,5,1],[5,4,5,5],[6,0,6,4],[6,5,6,7],[7,0,7,1],[7,5,7,7],[32,1,32,4]]}
["Vyúčtovanie finančných prostriedkov",null,null,null,null,null,null,"VZOR"]
[]
["Finančné prostriedky poskytol :     Slovenský tenisový zväz, Príkopova 6, 83103 Bratislava, IČO: 30811384"]
[null,null,null,1]
["Príjemca:",null,"Príjemca:",null,"Tenisový klub ABC Bratislava"]
[{"$f":"IF(D4<>3,\"IČO :\",\"Dátum narodenia :\")","v":"IČO :"},null,"31234567","Adresa :","Sputniková 36, 82101 Bratislava",null,"Číslo zmluvy:",21792408]
["Samostatný bankový účet na príjem verejných prostriedkov (IBAN)  : ",null,null,null,null,"SK7511000000002622621234"]
["Typ a názov zmluvy :",null,4,null,null,"letné MSR dorast"]
["Ročná hodnota zmluvy:",null,1400,"Kategória  (iba v prípade podujatia) :",null,"Obdobie vyúčtovania od / do:","2017-05-23","2017-05-27"]
[null,null,null,11]
["poradové číslo dokladu vo vyúčto vaní","Interné číslo účtovného dokladu","Číslo externého (originálneho)\núčtovného dokladu","Dátum skutočnej úhrady účtovného dokladu","Popis úhrady","Dodávateľ plnenia","Skutočne uhradená suma\n(v eur)","Vyplní STZ"]
[1,"FD 121/2017","170318","2017-05-29","zabezpečenie stravy - 18 osôb, 2dni","SlovRest s.r.o.",{"$f":"18*2*3.5","v":126}]
[2,"FD123/2017","2017021","2017-05-30","rozhodca - MSR, 4dni","Ján Rozhodca (szčo)",180]
[3,"ID 501",null,"2017-06-10","mzdy DoVP netto (3 osoby)","organizátori podujatia",{"$f":"72.09*3","v":216.27}]
[4,"ID 501",null,"2017-06-10","daň z miezd (3 osoby)","Daňový úrad XY",{"$f":"16.91*3","v":50.730000000000004}]
[5,"ID 501",null,"2017-06-10","zdravotné poistenie ","Všeobecná zdrav.poisťovňa",{"$f":"14*3","v":42}]
[6,"ID 501",null,"2017-06-10","sociálne poistenie","Sociálna poisťovňa",{"$f":"29.8*3","v":89.4}]
[7,"V 186/2017",null,"2017-05-25","vecné ceny - 4 osoby","GiftShop, s.r.o.",{"$f":"14.5*4","v":58}]
[8,"FD124/2017","0212017","2017-05-30","zdrav.služba 4dni","Záchranka, s.r.o.",160]
[9,"FV 216/2017",null,"2017-05-30","prenájom kurtov (Pozn.: dopočet do výšky zmluvy, doložiť faktúrou vystavenou z klubu na STZ)","Tenisový klub ABC Bratislava",480]
[10]
[11]
[12]
[13]
[14]
[15]
[16]
[17]
[18]
[19]
[20]
[null,null,null,null,"V prípade potreby vložte ďalšie riadky"]
["A","Skutočne uhradená a vyúčtovaná suma za obdobie/podujatie spolu",null,null,null,null,{"$f":"SUM(G12:G32)","v":1402.4}]
["B","Prenos navyše vyúčtovanej sumy z predchádzajúceho obdobia v rovnakom kalendárnom roku",null,null,null,null,0]
["C","Nárok na finančný príspevok za uvedené obdobie od STZ",null,null,null,null,1400]
["D","Nárok na neuhradený a nevyúčtovaný finančný príspevok za predchádzajúce obdobia od STZ",null,null,null,null,0]
["E","Uznaná suma príspevku : minimum ((A+B),(C+D)) ",null,null,null,null,{"$f":"MIN((G33+G34),(G35+G36))","v":1400}]
["F","Prenos navyše vyúčtovanej sumy do nasledujúceho obdobia v rovnakom kalendárnom roku (A+B-E)",null,null,null,null,{"$f":"+G33+G34-G37","v":2.4000000000000909}]
["G","Prijaté zálohové platby",null,null,null,null,1000]
["H","Suma k úhrade",null,null,null,null,{"$f":"+G37-G39","v":400}]
[null," (Ružovo zvýraznené položky v hárku vyplní tenisový klub / RTZ / športovec)."]
["Prílohu vyúčtovania tvoria kópie* všetkých účtovných dokladov z evidencie prijímateľa, uvedených vo vyúčtovaní v poradí podľa tabuľky vyššie, t.j. napr.:\n a) faktúra, spolu s príslušnou objednávkou (alebo zmluvou) a dokladom potvrdzujúcim jej úhradu (pokladničný doklad, bankový výpis),\n b) výdavkový pokladničný doklad + doklad o úhrade z registračnej pokladne,\n c) dohoda o vykonaní práce, prac.zmluva resp. iná zmluva spolu s dokladom potvrdzujúcim  úhradu odmeny netto (výdavkový pokl.doklad alebo bank.výpis) + doklad (bankový výpis) o úhrade dane zo záv.činnosti, resp. poistného na soc. a zdrav.poistenie (pokiaľ sú zahrnuté do vyúčtovania),\n d) ak je vo vyúčtovaní klubu uvedená suma za prenájom kurtov, ktoré sú vo vlastníctve/správe klubu, prílohu vyúčtovania tvorí faktúra klubu za prenájom kurtov, vystavená na STZ .                                                                        *Pozn.: Ak vyúčtovanie zasiela športovec, prikladá originály dokladov."]
["Podpísaný formulár spolu s prílohami zašlite po ukončení príslušného obdobia najneskôr do dátumu určeného v Zmluve poštou na adresu: Slovenský tenisový zväz, ekonomické oddelenie, Príkopova 6, 831 03 Bratislava."]
[{"$f":"+CONCATENATE(\"Formulár zašlite zároveň aj v elektronickej verzii (vo formáte .xlsm, .xls) na email: \",IF(C8=2,\"vyuctovanie.hraci@stz.sk\",\"vyuctovanie.kluby@stz.sk\"),\". (Bez príloh - dokladov z vyúčtovania).\")","v":"Formulár zašlite zároveň aj v elektronickej verzii (vo formáte .xlsm, .xls) na email: vyuctovanie.kluby@stz.sk. (Bez príloh - dokladov z vyúčtovania)."}]
["Do predmetu emailu uveďte číslo zmluvy:",null,null,null,{"$f":"IF(H6<>\"\",H6,\"\")","v":21792408}]
["Čestne vyhlasujem, že všetky uvedené údaje sú pravdivé a dolu podpísaná osoba/osoby je oprávnená/sú oprávnené v súlade so stanovami, resp. zriaďovacou listinou na podpis vyúčtovania. Súhlasím so zhromažďovaním, spracovávaním a zverejňovaním poskytnutých údajov v zmysle Zákona o ochrane osobných údajov."]
["Vypracoval:",null,"Ing. Jozef Príklad"]
[]
["Telefón a email :",null,"0909/999 123,  jozef1975@gmail.com"]
[]
["Dňa:",null,"2017-06-15"]
[null,null,null,null,null,"pečiatka a podpis štatutárneho zástupcu TK / RTZ / hráča"]
[]
[]
[]
[null,null,null,null,null,"za STZ schválil"]
[null,null,null,null,"táto časť pod čiarou sa netlačí"]
[]
[null,null,null,null,"Zoznam typov zmlúv"]
[null,null,null,1,"Zmluva o finančnom príspevku na šport mládeže"]
[null,null,null,2,"Zmluva o finančnom príspevku pre športovca"]
[null,null,null,3,"Zmluva o vzájomnej spolupráci - MSR družstiev"]
[null,null,null,4,"Zmluva o vzájomnej spolupráci - MSR jednotlivcov"]
[null,null,null,5,"Zmluva o vzájomnej spolupráci - medzinárodné turnaje"]
[null,null,null,6,"Zmluva o vzájomnej spolupráci - regionálne MSR halové"]
[null,null,null,7,"Zmluva o vzájomnej spolupráci - regionálne MSR letné"]
[null,null,null,8,"Zmluva o vzájomnej spolupráci - príspevok na činnosť RTZ"]
[null,null,null,9,"Zmluva o vzájomnej spolupráci - detský DC a FC"]
[null,null,null,10,"Zmluva o vzájomnej spolupráci ..."]
[]
[]
[]
[]
[null,null,null,null,"Zoznam kategórií"]
[null,null,null,1]
[null,null,null,2,"deti do 10rokov"]
[null,null,null,3,"mladší žiaci"]
[null,null,null,4,"mladšie žiačky"]
[null,null,null,5,"mladší žiaci a žiačky"]
[null,null,null,6,"starší žiaci"]
[null,null,null,7,"staršie žiačky"]
[null,null,null,8,"starší žiaci a žiačky"]
[null,null,null,9,"dorastenci"]
[null,null,null,10,"dorastenky"]
[null,null,null,11,"dorast"]
[null,null,null,12,"mladší dorastenci"]
[null,null,null,13,"mladšie dorastenky"]
[null,null,null,14,"mladší dorast"]
[null,null,null,15,"muži"]
[null,null,null,16,"ženy"]
[null,null,null,17,"dospelí"]
[null,null,null,18,"seniori 35+"]
[null,null,null,19,"seniori 45+"]
[null,null,null,20,"seniori 55+"]
[null,null,null,21,"seniori 65+"]
[null,null,null,22,"seniori 75+"]
[null,null,null,23,"seniori 85+"]
[null,null,null,24,"seniori 35+..85+"]
[null,null,null,25,"seniori iná kategória"]
[null,null,null,26,"športovec"]
[null,null,null,27,"turnaj ITF/TE"]
[null,null,null,28,"halové RMS"]
[null,null,null,29,"letné RMS"]
[null,null,null,30]
[]
[]
[]
[null,null,null,null,"Zoznam prijímateľov"]
[null,null,null,1,"Tenisový klub"]
[null,null,null,2,"Regionálny tenisový zväz"]
[null,null,null,3,"Športovec"]
[null,null,null,4]

{"sheet":"VZOR klub (medz.turnaj)","index":5,"n_rows":112,"n_cols":8,"rows_kept":112,"cut":false,"hidden":false,"merged":[[50,0,51,1],[50,2,51,4],[50,5,50,7],[51,5,51,7],[52,0,55,4],[52,5,54,7],[55,5,55,7],[48,0,49,1],[48,2,49,4],[34,1,34,4],[36,1,36,4],[38,1,38,4],[39,1,39,4],[41,0,41,7],[42,0,42,7],[43,0,43,7],[44,0,44,3],[45,0,45,7],[46,0,47,1],[46,2,47,4],[33,1,33,5],[0,0,0,6],[2,0,2,7],[3,5,3,7],[4,4,4,7],[5,0,5,1],[5,4,5,5],[6,0,6,4],[6,5,6,7],[7,0,7,1],[7,5,7,7],[32,1,32,4]]}
["Vyúčtovanie finančných prostriedkov",null,null,null,null,null,null,"VZOR"]
[]
["Finančné prostriedky poskytol :     Slovenský tenisový zväz, Príkopova 6, 83103 Bratislava, IČO: 30811384"]
[null,null,null,1]
["Príjemca:",null,"Príjemca:",null,"Tenisový klub ABC Bratislava"]
[{"$f":"IF(D4<>3,\"IČO :\",\"Dátum narodenia :\")","v":"IČO :"},null,"31234567","Adresa :","Sputniková 36, 82101 Bratislava",null,"Číslo zmluvy:",21792437]
["Samostatný bankový účet na príjem verejných prostriedkov (IBAN)  : ",null,null,null,null,"SK7511000000002622621234"]
["Typ a názov zmluvy :",null,10,null,null,"Slovakia Cup 2017, turnaj ITF2"]
["Ročná hodnota zmluvy:",null,5000,"Kategória  (iba v prípade podujatia) :",null,"Obdobie vyúčtovania od / do:","2017-05-20","2017-05-27"]
[null,null,null,11]
["poradové číslo dokladu vo vyúčto vaní","Interné číslo účtovného dokladu","Číslo externého (originálneho)\núčtovného dokladu","Dátum skutočnej úhrady účtovného dokladu","Popis úhrady","Dodávateľ plnenia","Skutočne uhradená suma\n(v eur)","Vyplní STZ"]
[1,"FD 121/2017","170318","2017-05-29","zabezpečenie stravy - 10 osôb, 7dni","SlovRest s.r.o.",{"$f":"10*7*3.5","v":245}]
[2,"FD123/2017","2017021","2017-05-30","rozhodca 7dni","Ján Rozhodca (szčo)",{"$f":"45*7","v":315}]
[3,"ID 501",null,"2017-06-10","mzdy DoVP netto (3 osoby)","organizátori podujatia",{"$f":"72.09*3*2","v":432.54}]
[4,"ID 501",null,"2017-06-10","daň z miezd (3 osoby)","Daňový úrad XY",{"$f":"16.91*3*2","v":101.46000000000001}]
[5,"ID 501",null,"2017-06-10","zdravotné poistenie ","Všeobecná zdrav.poisťovňa",{"$f":"14*3*2","v":84}]
[6,"ID 501",null,"2017-06-10","sociálne poistenie","Sociálna poisťovňa",{"$f":"29.8*3*2","v":178.8}]
[7,"V 186/2017",null,"2017-05-25","vecné ceny - 6 osôb","GiftShop, s.r.o.",{"$f":"14.5*6","v":87}]
[8,"FD124/2017","0212017","2017-05-30","zdrav.služba 7dni","Záchranka, s.r.o.",{"$f":"40*7","v":280}]
[9,"FD 125/2017","20170561","2017-05-30","ubytovanie hráčov, 56 osôb, 7dní","Študentský domov, s.r.o.",2792]
[10,"V 190/2017",null,"2017-05-19","nápoje pre hráčov 336ks","Tesco Stores, a.s.",{"$f":"56*0.4*6","v":134.4}]
[11,"FV 216/2017",null,"2017-05-30","prenájom kurtov (Pozn.: dopočet do výšky zmluvy, doložiť faktúrou vystavenou z klubu na STZ)","Tenisový klub ABC Bratislava",350]
[12]
[13]
[14]
[15]
[16]
[17]
[18]
[19]
[20]
[null,null,null,null,"V prípade potreby vložte ďalšie riadky"]
["A","Skutočne uhradená a vyúčtovaná suma za obdobie/podujatie spolu",null,null,null,null,{"$f":"SUM(G12:G32)","v":5000.2}]
["B","Prenos navyše vyúčtovanej sumy z predchádzajúceho obdobia v rovnakom kalendárnom roku",null,null,null,null,0]
["C","Nárok na finančný príspevok za uvedené obdobie od STZ",null,null,null,null,5000]
["D","Nárok na neuhradený a nevyúčtovaný finančný príspevok za predchádzajúce obdobia od STZ",null,null,null,null,0]
["E","Uznaná suma príspevku : minimum ((A+B),(C+D)) ",null,null,null,null,{"$f":"MIN((G33+G34),(G35+G36))","v":5000}]
["F","Prenos navyše vyúčtovanej sumy do nasledujúceho obdobia v rovnakom kalendárnom roku (A+B-E)",null,null,null,null,{"$f":"+G33+G34-G37","v":0.1999999999998181}]
["G","Prijaté zálohové platby",null,null,null,null,3000]
["H","Suma k úhrade",null,null,null,null,{"$f":"+G37-G39","v":2000}]
[null," (Ružovo zvýraznené položky v hárku vyplní tenisový klub / RTZ / športovec)."]
["Prílohu vyúčtovania tvoria kópie* všetkých účtovných dokladov z evidencie prijímateľa, uvedených vo vyúčtovaní v poradí podľa tabuľky vyššie, t.j. napr.:\n a) faktúra, spolu s príslušnou objednávkou (alebo zmluvou) a dokladom potvrdzujúcim jej úhradu (pokladničný doklad, bankový výpis),\n b) výdavkový pokladničný doklad + doklad o úhrade z registračnej pokladne,\n c) dohoda o vykonaní práce, prac.zmluva resp. iná zmluva spolu s dokladom potvrdzujúcim  úhradu odmeny netto (výdavkový pokl.doklad alebo bank.výpis) + doklad (bankový výpis) o úhrade dane zo záv.činnosti, resp. poistného na soc. a zdrav.poistenie (pokiaľ sú zahrnuté do vyúčtovania),\n d) ak je vo vyúčtovaní klubu uvedená suma za prenájom kurtov, ktoré sú vo vlastníctve/správe klubu, prílohu vyúčtovania tvorí faktúra klubu za prenájom kurtov, vystavená na STZ .                                                                        *Pozn.: Ak vyúčtovanie zasiela športovec, prikladá originály dokladov."]
["Podpísaný formulár spolu s prílohami zašlite po ukončení príslušného obdobia najneskôr do dátumu určeného v Zmluve poštou na adresu: Slovenský tenisový zväz, ekonomické oddelenie, Príkopova 6, 831 03 Bratislava."]
[{"$f":"+CONCATENATE(\"Formulár zašlite zároveň aj v elektronickej verzii (vo formáte .xlsm, .xls) na email: \",IF(C8=2,\"vyuctovanie.hraci@stz.sk\",\"vyuctovanie.kluby@stz.sk\"),\". (Bez príloh - dokladov z vyúčtovania).\")","v":"Formulár zašlite zároveň aj v elektronickej verzii (vo formáte .xlsm, .xls) na email: vyuctovanie.kluby@stz.sk. (Bez príloh - dokladov z vyúčtovania)."}]
["Do predmetu emailu uveďte číslo zmluvy:",null,null,null,{"$f":"IF(H6<>\"\",H6,\"\")","v":21792437}]
["Čestne vyhlasujem, že všetky uvedené údaje sú pravdivé a dolu podpísaná osoba/osoby je oprávnená/sú oprávnené v súlade so stanovami, resp. zriaďovacou listinou na podpis vyúčtovania. Súhlasím so zhromažďovaním, spracovávaním a zverejňovaním poskytnutých údajov v zmysle Zákona o ochrane osobných údajov."]
["Vypracoval:",null,"Ing. Jozef Príklad"]
[]
["Telefón a email :",null,"0909/999 123,  jozef1975@gmail.com"]
[]
["Dňa:",null,"2017-06-15"]
[null,null,null,null,null,"pečiatka a podpis štatutárneho zástupcu TK / RTZ / hráča"]
[]
[]
[]
[null,null,null,null,null,"za STZ schválil"]
[null,null,null,null,"táto časť pod čiarou sa netlačí"]
[]
[null,null,null,null,"Zoznam typov zmlúv"]
[null,null,null,1,"Zmluva o finančnom príspevku na šport mládeže"]
[null,null,null,2,"Zmluva o finančnom príspevku pre športovca"]
[null,null,null,3,"Zmluva o vzájomnej spolupráci - MSR družstiev"]
[null,null,null,4,"Zmluva o vzájomnej spolupráci - MSR jednotlivcov"]
[null,null,null,5,"Zmluva o vzájomnej spolupráci - medzinárodné turnaje"]
[null,null,null,6,"Zmluva o vzájomnej spolupráci - regionálne MSR halové"]
[null,null,null,7,"Zmluva o vzájomnej spolupráci - regionálne MSR letné"]
[null,null,null,8,"Zmluva o vzájomnej spolupráci - príspevok na činnosť RTZ"]
[null,null,null,9,"Zmluva o vzájomnej spolupráci - detský DC a FC"]
[null,null,null,10,"Zmluva o vzájomnej spolupráci ..."]
[]
[]
[]
[]
[null,null,null,null,"Zoznam kategórií"]
[null,null,null,1]
[null,null,null,2,"deti do 10rokov"]
[null,null,null,3,"mladší žiaci"]
[null,null,null,4,"mladšie žiačky"]
[null,null,null,5,"mladší žiaci a žiačky"]
[null,null,null,6,"starší žiaci"]
[null,null,null,7,"staršie žiačky"]
[null,null,null,8,"starší žiaci a žiačky"]
[null,null,null,9,"dorastenci"]
[null,null,null,10,"dorastenky"]
[null,null,null,11,"dorast"]
[null,null,null,12,"mladší dorastenci"]
[null,null,null,13,"mladšie dorastenky"]
[null,null,null,14,"mladší dorast"]
[null,null,null,15,"muži"]
[null,null,null,16,"ženy"]
[null,null,null,17,"dospelí"]
[null,null,null,18,"seniori 35+"]
[null,null,null,19,"seniori 45+"]
[null,null,null,20,"seniori 55+"]
[null,null,null,21,"seniori 65+"]
[null,null,null,22,"seniori 75+"]
[null,null,null,23,"seniori 85+"]
[null,null,null,24,"seniori 35+..85+"]
[null,null,null,25,"seniori iná kategória"]
[null,null,null,26,"športovec"]
[null,null,null,27,"turnaj ITF/TE"]
[null,null,null,28,"halové RMS"]
[null,null,null,29,"letné RMS"]
[null,null,null,30]
[]
[]
[]
[null,null,null,null,"Zoznam prijímateľov"]
[null,null,null,1,"Tenisový klub"]
[null,null,null,2,"Regionálny tenisový zväz"]
[null,null,null,3,"Športovec"]
[null,null,null,4]